{"text_format":"1","workbook":"xlsx","n_sheets":4,"sheets":["Forside","Etableringsbudget","Driftbudget","Find din timepris"],"not_rendered":{"charts":0,"images":1,"macros":1,"external_links":0,"defined_names":225,"comments":2,"pivot_tables":0},"unopened":[],"bounds":{"document_bytes":16777216,"sheet_cells":100000,"rows_first":2000,"rows_last":500,"rows_between":2000,"halvings":0,"cell_chars":16384,"cell_head_chars":4096},"cells_cut":0,"cells_raw":0,"read":"whole","date_system":"1900"}

{"sheet":"Forside","index":0,"n_rows":47,"n_cols":10,"rows_kept":47,"cut":false,"hidden":false,"merged":[[12,1,12,4],[35,9,39,17],[30,9,33,17],[41,9,44,17],[46,9,56,17],[24,9,28,17]]}
[]
[]
[]
[]
[]
[]
[]
[null,"Værktøj til budgetlægning og timeprisberegning"]
[]
[]
[null,"Husk at aktivere makroer, ellers virker Budget beregningsværktøjet ikke. "]
[null,"Er du i tvivl om, hvordan du aktiverer makroer, læs i Vejledningen på vores hjemmeside:"]
[null,"https://www.dp.dk/budgetberegneren"]
[]
[null,"Vær opmærksom på, at nogle celler er markeret med en lille rød kommentar-trekant i det ene hjørne."]
[null,"Den markerer, at der er en forklarende kommentar til feltet. Hold din mus hen over trekanten for at læse kommentaren."]
[]
[null,"Ønsker du at få vist alle kommentarer på en fane, så vælg \"Gennemse\" i menuen og vælg \"Vis alle kommentarer\"."]
[]
[null,"Alle budgetfanerne har knapper i toppen, der tillader at indsætte / slette linjer."]
[null,"Brug dem til at tilpasse budgetskemaet, så det passer til din forretning."]
[]
[]
[null,"Indtast driftsbudget efter måned eller år:",null,null,null,null,null,null,null,"Etableringsbudget"]
[null,null,null,null,null,null,null,null,null,"Før du stifter din psykologvirksomhed, er det en god idé at lave et etableringsbudget. Etableringsbudgettet viser den nødvendige opstartskapital, som din psykologvirksomhed kræver. Budgettet indeholder alt hvad der er nødvendigt for at du kan starte din psykologvirksomhed og få gang i driften. Viser etableringsbudgettet et beløb, som overstiger din kontante beholdning, skal du måske overveje ekstern finansiering. "]
[]
[]
[]
[null,"Hurtige genveje:"]
[]
[null,null,null,null,null,null,null,null,null,"Du kan næsten ikke være for detaljeret med etableringsbudgettet. Medtag alle tænkelige udgifter som er forbundet med opstarten. Høj detaljeringsgrad viser, at du har gennemtænkt din idé, og det sikrer dig også mod uventede udgifter."]
[]
[]
[]
[null,null,null,null,null,null,null,null,null,"Driftsbudget"]
[null,null,null,null,null,null,null,null,null,"Dit driftsbudget viser de indtægter og udgifter, du forventer, der kommer i din psykologvirksomhed, når den er startet. Normalt laver du et driftsbudget for et år ad gangen for at kunne vurdere driften over en længere periode end blot f.eks. en måned. Ved opstart af psykologvirksomhed kan det dog være en god idé at opgøre driftsbudgettet på månedsbasis, så du hele tiden har føling med din økonomi. "]
[]
[]
[]
[]
[]
[null,null,null,null,null,null,null,null,null,"Dit driftsbudget er opdelt i en masse forskellige poster - dvs. linjer, der hver beskriver en indtægt eller udgift. Vi har medtaget de mest almindelige poster i et driftsbudget for psykologvirksomheder. "]
[]
[]
[]
[null,null,null,null,null,null,null,null,null,"Find din timepris"]
[null,null,null,null,null,null,null,null,null,"Når du driver en psykologvirksomhed, vil du ikke kunne fakturere alle de timer, som du bruger i din psykologvirksomhed. Du vil skulle bruge en del timer på administration, møder, markedsføring, etc., som du ikke kan fakturere timer for. Derudover vil der være en række faste omkostninger til IT, bogføring, markedsføring, etc. som du ikke kan viderefakturere. Når du skal fastsætte dine timepris i fht. til dine kunder, skal du dermed indregne ikke fakturerbare timer, og faste omkostninger til driften af din psykologvirksomhed.\n\nI fanebladet ”Find din timepris” kan du udlede antallet af fakturerbare timer i din virksomhed, og kombineret med kendskab til dine faste omkostninger, kan du udlede en timepris, der giver en bæredygtig økonomi i din virksomhed."]

{"sheet":"Etableringsbudget","index":1,"n_rows":71,"n_cols":3,"rows_kept":71,"cut":false,"hidden":false,"merged":[]}
[]
[null,"Etableringsbudget"]
[null,"Udgifter","kr."]
[]
[null,"Lokaler:"]
[null,"Udbetaling ved køb af lokaler eller virksomhed",0]
[null,"Første ydelse (renter og afdrag, som betales inden psykologvirksomheden er i drift)",0]
[null,"Depositum ved leje",0]
[null,"Første leje",0]
[null,"Indretning og istandsættelse (f.eks. ændring og maling af lokale)",0]
[null,"Andet:",0]
[null,"I alt",{"$f":"SUM(C6:C11)","v":0}]
[]
[null,"Kontorinventar:"]
[null,"Møbler (skrivebord, kontorstol, inventar til sikker opbevaring af data, reol m.v.)",0]
[null,"Kontorartikler",0]
[null,"Andet:",0]
[null,"I alt",{"$f":"SUM(C15:C17)","v":0}]
[]
[null,"IT-udstyr:"]
[null,"Computer og andet IT-udstyr",0]
[null,"Telefon",0]
[null,"Kontorsoftware (tekstbehandling, e-mail etc.)",0]
[null,"Specialsoftware (journalsystemer, regnskabsprogram etc.)",0]
[null,"Andet:",0]
[null,"I alt",{"$f":"SUM(C21:C25)","v":0}]
[]
[null,"Forsikringer og andre hjælpemidler:"]
[null,"Forsikringer (f.eks. ansvarsforsikring, erhvervssikring, sygedriftstabsforsikring)",0]
[null,"Bøger, tidsskrifter, terapimaterialer o.l.",0]
[null,"Medlemsskab af foreninger og netværk",0]
[null,"I alt",{"$f":"SUM(C29:C31)","v":0}]
[]
[null,"Rådgivning:"]
[null,"GDPR-Rådgivning",0]
[null,"Advokat",0]
[null,"Revisor",0]
[null,"Andet:",0]
[null,"I alt",{"$f":"SUM(C35:C38)","v":0}]
[]
[null,"Markedsføring:"]
[null,"Logodesign mv.",0]
[null,"Visitkort o.l.",0]
[null,"Hjemmeside",0]
[null,"Trykte materialer",0]
[null,"Online annoncering (f.eks. markedsføring på sociale medier, ad words og seo-optimering)",0]
[null,"Andet:",0]
[null,"I alt",{"$f":"SUM(C42:C47)","v":0}]
[]
[null,"Uddannelse:"]
[null,"Iværksætterforløb",0]
[null,"Andet (1):",0]
[null,"Andet (2):",0]
[null,"I alt",{"$f":"SUM(C51:C53)","v":0}]
[]
[null,"Bil:"]
[null,"Udbetaling til bil / første leasingydelse",0]
[null,"Andet:",0]
[null,"I alt",{"$f":"SUM(C57:C58)","v":0}]
[]
[null,"Andre udgifter:"]
[null,"Andet (1):",0]
[null,"Andet (2):",0]
[null,"Andet (3):",0]
[null,"Andet (4):",0]
[null,"Andet (5):",0]
[null,"I alt",{"$f":"SUM(C62:C66)","v":0}]
[]
[]
[null,"I alt"]
[null,"Udgifter i alt",{"$f":"SUM(LokalerEtabIalt,KontorinventarEtabIalt,ITudstyrEtabIalt,ForsikringerogandrehjælpemidlerEtabIalt,RådgivningEtabIalt,MarkedsføringEtabIalt,UddannelseEtabIalt,BilEtabIalt,AndreudgifterEtabIalt)","v":0}]

{"sheet":"Driftbudget","index":2,"n_rows":120,"n_cols":17,"rows_kept":120,"cut":false,"hidden":false,"merged":[]}
[]
[null,"Driftsbudget"]
[]
[]
[]
[null,"Tip! På forsiden kan du vælge om du vil indtaste i årsvisning eller månedsvisning -> ","Januar","Februar","Marts","April","Maj","Juni","Juli","August","September","Oktober","November","December","Jan.-Dec. i alt",null,"Hele året"]
[]
[null,"Indtægter"]
[]
[null,"Primære indtægter"]
[null,"Konsultationer iht. Overenskomst om Psykologhjælp, Regionandel",0,0,0,0,0,0,0,0,0,0,0,0,{"$f":"SUM(C11:N11)","v":0},null,0]
[null,"Konsultationer iht. Overenskomst om Psykologhjælp, Klientandel betalt af klienten",0,0,0,0,0,0,0,0,0,0,0,0,0,null,0]
[null,"Konsultationer iht. Overenskomst om Psykologhjælp, Klientandel betalt af forsikringsselskab eller netværk",0,0,0,0,0,0,0,0,0,0,0,0,0,null,0]
[null,"Konsultationer betalt af kommuner og regioner",0,0,0,0,0,0,0,0,0,0,0,0,0,null,0]
[null,"Konsultationer betalt af sundhedsforsikringer/ netværk (eksklusiv konsultationer iht. Overenskomst om Psykolog-hjælp)",0,0,0,0,0,0,0,0,0,0,0,0,0,null,0]
[null,"Konsultationer betalt af privatbetalende klienter",0,0,0,0,0,0,0,0,0,0,0,0,0,null,0]
[null,"Udfærdigelse af erklæringer (status, aktuel situation eller vurdering) for kommuner i Det Socialpsykologiske Samarbejde",0,0,0,0,0,0,0,0,0,0,0,0,0,null,0]
[null,"Udfærdigelse af erklæringer/vurderinger/statusblanketter for forsikringsselskaber m.fl.",0,0,0,0,0,0,0,0,0,0,0,0,0,null,0]
[null,"Udfærdigelse af børnesagkyndigundersøgelse",0,0,0,0,0,0,0,0,0,0,0,0,0,null,0]
[null,"Udfærdigelse af vurdering/erklæringer for andre",0,0,0,0,0,0,0,0,0,0,0,0,0,null,0]
[null,"Opgaver betalt af virksomheder",0,0,0,0,0,0,0,0,0,0,0,0,0,null,0]
[null,"Opgaver betalt af kommuner, regioner og stat",0,0,0,0,0,0,0,0,0,0,0,0,0,null,0]
[null,"Supervision",0,0,0,0,0,0,0,0,0,0,0,0,0,null,0]
[null,"Undervisning og foredrag",0,0,0,0,0,0,0,0,0,0,0,0,0,null,0]
[null,"Indtægter fra andet arbejde",0,0,0,0,0,0,0,0,0,0,0,0,0,null,0]
[null,"Andre Indtægter(1)",0,0,0,0,0,0,0,0,0,0,0,0,0,null,0]
[null,"Andre Indtægter(2)",0,0,0,0,0,0,0,0,0,0,0,0,0,null,0]
[null,"Andre Indtægter(3)",0,0,0,0,0,0,0,0,0,0,0,0,0,null,0]
[null,"Andre Indtægter(4)",0,0,0,0,0,0,0,0,0,0,0,0,0,null,0]
[null,"Primære indtægter i alt:",{"$f":"SUM(C11:C29)","v":0},0,0,0,0,0,0,0,0,0,0,0,0,null,{"$f":"SUM(Q11:Q29)","v":0}]
[]
[null,"Sekundære indtægter"]
[null,"Indtægt ved privat/offentlig ansættelse (incl. eget og arbejdsgivers pensionsbidrag og feriepenge)",0,0,0,0,0,0,0,0,0,0,0,0,{"$f":"SUM(C33:N33)","v":0},null,0]
[null,"Sygedagpenge og barselsdagpenge",0,0,0,0,0,0,0,0,0,0,0,0,{"$f":"SUM(C34:N34)","v":0},null,0]
[null,"Erstatning fra sygedriftstabsforsikring",0,0,0,0,0,0,0,0,0,0,0,0,{"$f":"SUM(C35:N35)","v":0},null,0]
[null,"Huslejeindtægter ved f.eks. klinikfællesskab eller andre",0,0,0,0,0,0,0,0,0,0,0,0,{"$f":"SUM(C36:N36)","v":0},null,0]
[null,"Andre indtægter",0,0,0,0,0,0,0,0,0,0,0,0,{"$f":"SUM(C37:N37)","v":0},null,0]
[null,"Sekundære indtægter i alt:",{"$f":"SUM(C33:C37)","v":0},0,0,0,0,0,0,0,0,0,0,0,0,null,{"$f":"SUM(Q33:Q37)","v":0}]
[]
[null,"Indtægter i alt",{"$f":"SUM(Primæreindtægter1,Sekundæreindtægter1)","v":0},{"$f":"SUM(Primæreindtægter2,Sekundæreindtægter2)","v":0},{"$f":"SUM(Primæreindtægter3,Sekundæreindtægter3)","v":0},{"$f":"SUM(Primæreindtægter4,Sekundæreindtægter4)","v":0},{"$f":"SUM(Primæreindtægter5,Sekundæreindtægter5)","v":0},{"$f":"SUM(Primæreindtægter6,Sekundæreindtægter6)","v":0},{"$f":"SUM(Primæreindtægter7,Sekundæreindtægter7)","v":0},{"$f":"SUM(Primæreindtægter8,Sekundæreindtægter8)","v":0},{"$f":"SUM(Primæreindtægter9,Sekundæreindtægter9)","v":0},{"$f":"SUM(Primæreindtægter10,Sekundæreindtægter10)","v":0},{"$f":"SUM(Primæreindtægter11,Sekundæreindtægter11)","v":0},{"$f":"SUM(Primæreindtægter12,Sekundæreindtægter12)","v":0},{"$f":"SUM(Primæreindtægter13,Sekundæreindtægter13)","v":0},null,{"$f":"SUM(PrimæreindtægterÅr,SekundæreindtægterÅr)","v":0}]
[]
[null,"Udgifter"]
[]
[null,"Lønudgifter"]
[null,"Løn inkl. pension og feriepenge til dig selv",0,0,0,0,0,0,0,0,0,0,0,0,{"$f":"SUM(C45:N45)","v":0},null,0]
[null,"Løn inkl. pension og feriepenge til ansatte psykologer",0,0,0,0,0,0,0,0,0,0,0,0,{"$f":"SUM(C46:N46)","v":0},null,0]
[null,"Løn inkl. pension og feriepenge til kontorpersonale",0,0,0,0,0,0,0,0,0,0,0,0,{"$f":"SUM(C47:N47)","v":0},null,0]
[null,"Løn inkl. pension og feriepenge til andre ansatte",0,0,0,0,0,0,0,0,0,0,0,0,{"$f":"SUM(C48:N48)","v":0},null,0]
[null,"Lønudgifter i alt:",{"$f":"SUM(C45:C48)","v":0},0,0,0,0,0,0,0,0,0,0,0,0,null,{"$f":"SUM(Q45:Q48)","v":0}]
[]
[null,"Personale udgifter"]
[null,"Kursusudgifter, ekstern supervision m.m.",0,0,0,0,0,0,0,0,0,0,0,0,{"$f":"SUM(C52:N52)","v":0},null,0]
[null,"Andre udgifter",0,0,0,0,0,0,0,0,0,0,0,0,{"$f":"SUM(C53:N53)","v":0},null,0]
[null,"Personale udgifter i alt:",{"$f":"SUM(C52:C53)","v":0},0,0,0,0,0,0,0,0,0,0,0,0,null,{"$f":"SUM(Q52:Q53)","v":0}]
[]
[null,"Honorarer til ekstern hjælp"]
[null,"Honorar til andre selvstændige",0,0,0,0,0,0,0,0,0,0,0,0,{"$f":"SUM(C57:N57)","v":0},null,0]
[null,"Honorarer til ekstern hjælp i alt:",{"$f":"SUM(C57:C57)","v":0},0,0,0,0,0,0,0,0,0,0,0,0,null,{"$f":"SUM(Q57:Q57)","v":0}]
[]
[null,"Materialer og udgifter til egen uddannelse"]
[null,"Egne kursusudgifter",0,0,0,0,0,0,0,0,0,0,0,0,{"$f":"SUM(C61:N61)","v":0},null,0]
[null,"Bøger, tidsskrifter, terapimaterialer og andre materialeudgifter",0,0,0,0,0,0,0,0,0,0,0,0,{"$f":"SUM(C62:N62)","v":0},null,0]
[null,"Egen supervision",0,0,0,0,0,0,0,0,0,0,0,0,{"$f":"SUM(C63:N63)","v":0},null,0]
[null,"Udgifter til netværksmøder og faglige møder",0,0,0,0,0,0,0,0,0,0,0,0,{"$f":"SUM(C64:N64)","v":0},null,0]
[null,"Materialer og udgifter til egen uddannelse i alt:",{"$f":"SUM(C61:C64)","v":0},0,0,0,0,0,0,0,0,0,0,0,0,null,{"$f":"SUM(Q61:Q64)","v":0}]
[]
[null,"Lokaleomkostninger"]
[null,"Husleje",0,0,0,0,0,0,0,0,0,0,0,0,{"$f":"SUM(C68:N68)","v":0},null,0]
[null,"Ejendomsskat",0,0,0,0,0,0,0,0,0,0,0,0,0,null,0]
[null,"Renter (men ikke afdrag)",0,0,0,0,0,0,0,0,0,0,0,0,0,null,0]
[null,"Afdrag på lån til lokaler",0,0,0,0,0,0,0,0,0,0,0,0,0,null,0]
[null,"El , varme, vand",0,0,0,0,0,0,0,0,0,0,0,0,0,null,0]
[null,"Vedligeholdelse af lokaler (herunder rengøringsmidler)",0,0,0,0,0,0,0,0,0,0,0,0,0,null,0]
[null,"Lokaleomkostninger i alt:",{"$f":"SUM(C68:C73)","v":0},0,0,0,0,0,0,0,0,0,0,0,0,null,{"$f":"SUM(Q68:Q73)","v":0}]
[]
[null,"Forsikringer, kontingenter"]
[null,"Erhvervsforsikring",0,0,0,0,0,0,0,0,0,0,0,0,{"$f":"SUM(C77:N77)","v":0},null,0]
[null,"Sygedriftstabsforsikring",0,0,0,0,0,0,0,0,0,0,0,0,0,null,0]
[null,"Sygedagpengeforsikring",0,0,0,0,0,0,0,0,0,0,0,0,0,null,0]
[null,"Hospitals-/sundhedsforsikring",0,0,0,0,0,0,0,0,0,0,0,0,0,null,0]
[null,"Indbetaling til egen pensionsordning, invaliditets- og erhvervsevnetabsforsikring",0,0,0,0,0,0,0,0,0,0,0,0,0,null,0]
[null,"Evt.andre forsikringer",0,0,0,0,0,0,0,0,0,0,0,0,0,null,0]
[null,"Kontingenter til foreninger",0,0,0,0,0,0,0,0,0,0,0,0,0,null,0]
[null,"Forsikringer, kontingenter i alt:",{"$f":"SUM(C77:C83)","v":0},0,0,0,0,0,0,0,0,0,0,0,0,null,{"$f":"SUM(Q77:Q83)","v":0}]
[]
[null,"Administrationsudgifter"]
[null,"Tryksager, kontorartikler, porto",0,0,0,0,0,0,0,0,0,0,0,0,{"$f":"SUM(C87:N87)","v":0},null,0]
[null,"Telefon",0,0,0,0,0,0,0,0,0,0,0,0,0,null,0]
[null,"Internet",0,0,0,0,0,0,0,0,0,0,0,0,0,null,0]
[null,"Annoncering og reklame",0,0,0,0,0,0,0,0,0,0,0,0,0,null,0]
[null,"Blade og aviser",0,0,0,0,0,0,0,0,0,0,0,0,0,null,0]
[null,"Transport, kørsel i egen bil samt vedligeholdelse",0,0,0,0,0,0,0,0,0,0,0,0,0,null,0]
[null,"Diverse gebyrer (fx til Nets og Mobile Pay",0,0,0,0,0,0,0,0,0,0,0,0,0,null,0]
[null,"Øvrige administrationsudgifter",0,0,0,0,0,0,0,0,0,0,0,0,0,null,0]
[null,"Administrationsudgifter i alt:",{"$f":"SUM(C87:C94)","v":0},0,0,0,0,0,0,0,0,0,0,0,0,null,{"$f":"SUM(Q87:Q94)","v":0}]
[]
[null,"Ekstern assistance"]
[null,"Web-bureau",0,0,0,0,0,0,0,0,0,0,0,0,{"$f":"SUM(C98:N98)","v":0},null,0]
[null,"Regnskabsmæssig assistance, revisor",0,0,0,0,0,0,0,0,0,0,0,0,0,null,0]
[null,"Advokat, herunder inkasso omkostninger",0,0,0,0,0,0,0,0,0,0,0,0,0,null,0]
[null,"IT-Support",0,0,0,0,0,0,0,0,0,0,0,0,0,null,0]
[null,"Rengøringshjælp",0,0,0,0,0,0,0,0,0,0,0,0,0,null,0]
[null,"Anden assistance",0,0,0,0,0,0,0,0,0,0,0,0,0,null,0]
[null,"Ekstern assistance i alt:",{"$f":"SUM(C98:C103)","v":0},0,0,0,0,0,0,0,0,0,0,0,0,null,{"$f":"SUM(Q98:Q103)","v":0}]
[]
[null,"Afskrivninger, finansieringsomkostninger og andet"]
[null,"Bil ejet af klinikken, IT, indretning af lokale",0,0,0,0,0,0,0,0,0,0,0,0,{"$f":"SUM(C107:N107)","v":0},null,0]
[null,"Renteudgifter vedr. klinikken (f.eks. kassekredit)",0,0,0,0,0,0,0,0,0,0,0,0,{"$f":"SUM(C108:N108)","v":0},null,0]
[null,"Andre omkostninger",0,0,0,0,0,0,0,0,0,0,0,0,{"$f":"SUM(C109:N109)","v":0},null,0]
[null,"Afskrivninger, finansieringsomkostninger og andet i alt:",{"$f":"SUM(C107:C109)","v":0},0,0,0,0,0,0,0,0,0,0,0,0,null,{"$f":"SUM(Q107:Q109)","v":0}]
[]
[null,"Andre udgifter"]
[null,"Andre udgifter(1)",0,0,0,0,0,0,0,0,0,0,0,0,{"$f":"SUM(C113:N113)","v":0},null,0]
[null,"Andre udgifter(2)",0,0,0,0,0,0,0,0,0,0,0,0,{"$f":"SUM(C114:N114)","v":0},null,0]
[null,"Andre udgifter(3)",0,0,0,0,0,0,0,0,0,0,0,0,{"$f":"SUM(C115:N115)","v":0},null,0]
[null,"Andre udgifter i alt:",{"$f":"SUM(C113:C115)","v":0},0,0,0,0,0,0,0,0,0,0,0,0,null,{"$f":"SUM(Q113:Q115)","v":0}]
[]
[null,"Udgifter i alt",{"$f":"SUM(Lønudgifter1,Personaleudgifter1,Honorarertileksternhjælp1,Materialerogudgiftertilegenuddannelse1,Lokaleomkostninger1,Forsikringerkontingenter1,Administrationsudgifter1,Eksternassistance1,Afskrivningerfinansieringsomkostningerogandet1,Andreudgifter1)","v":0},{"$f":"SUM(Lønudgifter2,Personaleudgifter2,Honorarertileksternhjælp2,Materialerogudgiftertilegenuddannelse2,Lokaleomkostninger2,Forsikringerkontingenter2,Administrationsudgifter2,Eksternassistance2,Afskrivningerfinansieringsomkostningerogandet2,Andreudgifter2)","v":0},{"$f":"SUM(Lønudgifter3,Personaleudgifter3,Honorarertileksternhjælp3,Materialerogudgiftertilegenuddannelse3,Lokaleomkostninger3,Forsikringerkontingenter3,Administrationsudgifter3,Eksternassistance3,Afskrivningerfinansieringsomkostningerogandet3,Andreudgifter3)","v":0},{"$f":"SUM(Lønudgifter4,Personaleudgifter4,Honorarertileksternhjælp4,Materialerogudgiftertilegenuddannelse4,Lokaleomkostninger4,Forsikringerkontingenter4,Administrationsudgifter4,Eksternassistance4,Afskrivningerfinansieringsomkostningerogandet4,Andreudgifter4)","v":0},{"$f":"SUM(Lønudgifter5,Personaleudgifter5,Honorarertileksternhjælp5,Materialerogudgiftertilegenuddannelse5,Lokaleomkostninger5,Forsikringerkontingenter5,Administrationsudgifter5,Eksternassistance5,Afskrivningerfinansieringsomkostningerogandet5,Andreudgifter5)","v":0},{"$f":"SUM(Lønudgifter6,Personaleudgifter6,Honorarertileksternhjælp6,Materialerogudgiftertilegenuddannelse6,Lokaleomkostninger6,Forsikringerkontingenter6,Administrationsudgifter6,Eksternassistance6,Afskrivningerfinansieringsomkostningerogandet6,Andreudgifter6)","v":0},{"$f":"SUM(Lønudgifter7,Personaleudgifter7,Honorarertileksternhjælp7,Materialerogudgiftertilegenuddannelse7,Lokaleomkostninger7,Forsikringerkontingenter7,Administrationsudgifter7,Eksternassistance7,Afskrivningerfinansieringsomkostningerogandet7,Andreudgifter7)","v":0},{"$f":"SUM(Lønudgifter8,Personaleudgifter8,Honorarertileksternhjælp8,Materialerogudgiftertilegenuddannelse8,Lokaleomkostninger8,Forsikringerkontingenter8,Administrationsudgifter8,Eksternassistance8,Afskrivningerfinansieringsomkostningerogandet8,Andreudgifter8)","v":0},{"$f":"SUM(Lønudgifter9,Personaleudgifter9,Honorarertileksternhjælp9,Materialerogudgiftertilegenuddannelse9,Lokaleomkostninger9,Forsikringerkontingenter9,Administrationsudgifter9,Eksternassistance9,Afskrivningerfinansieringsomkostningerogandet9,Andreudgifter9)","v":0},{"$f":"SUM(Lønudgifter10,Personaleudgifter10,Honorarertileksternhjælp10,Materialerogudgiftertilegenuddannelse10,Lokaleomkostninger10,Forsikringerkontingenter10,Administrationsudgifter10,Eksternassistance10,Afskrivningerfinansieringsomkostningerogandet10,Andreudgifter10)","v":0},{"$f":"SUM(Lønudgifter11,Personaleudgifter11,Honorarertileksternhjælp11,Materialerogudgiftertilegenuddannelse11,Lokaleomkostninger11,Forsikringerkontingenter11,Administrationsudgifter11,Eksternassistance11,Afskrivningerfinansieringsomkostningerogandet11,Andreudgifter11)","v":0},{"$f":"SUM(Lønudgifter12,Personaleudgifter12,Honorarertileksternhjælp12,Materialerogudgiftertilegenuddannelse12,Lokaleomkostninger12,Forsikringerkontingenter12,Administrationsudgifter12,Eksternassistance12,Afskrivningerfinansieringsomkostningerogandet12,Andreudgifter12)","v":0},{"$f":"SUM(Lønudgifter13,Personaleudgifter13,Honorarertileksternhjælp13,Materialerogudgiftertilegenuddannelse13,Lokaleomkostninger13,Forsikringerkontingenter13,Administrationsudgifter13,Eksternassistance13,Afskrivningerfinansieringsomkostningerogandet13,Andreudgifter13)","v":0},null,{"$f":"SUM(LønudgifterÅr,PersonaleudgifterÅr,HonorarertileksternhjælpÅr,MaterialerogudgiftertilegenuddannelseÅr,LokaleomkostningerÅr,ForsikringerkontingenterÅr,AdministrationsudgifterÅr,EksternassistanceÅr,AfskrivningerfinansieringsomkostningerogandetÅr,AndreudgifterÅr)","v":0}]
[]
[null,"Fortjeneste i psykologvirksomheden",{"$f":"Indtægter1 - Udgifter1","v":0},{"$f":"Indtægter2 - Udgifter2","v":0},{"$f":"Indtægter3 - Udgifter3","v":0},{"$f":"Indtægter4 - Udgifter4","v":0},{"$f":"Indtægter5 - Udgifter5","v":0},{"$f":"Indtægter6 - Udgifter6","v":0},{"$f":"Indtægter7 - Udgifter7","v":0},{"$f":"Indtægter8 - Udgifter8","v":0},{"$f":"Indtægter9 - Udgifter9","v":0},{"$f":"Indtægter10 - Udgifter10","v":0},{"$f":"Indtægter11 - Udgifter11","v":0},{"$f":"Indtægter12 - Udgifter12","v":0},{"$f":"Indtægter13 - Udgifter13","v":0},null,{"$f":"IndtægterÅr - UdgifterÅr","v":0}]

{"sheet":"Find din timepris","index":3,"n_rows":35,"n_cols":5,"rows_kept":35,"cut":false,"hidden":false,"merged":[]}
[]
[null,"Antal timer pr. år",0,"Et normalt årbejdsår er 52 uger * 37 timer = 1924 timer pr. år"]
[]
[null,"Timer til ferie, sygdom og helligdage"]
[null,"Ferie",0,"6 ferieuger svarer til 6 uger * 37 timer = 222 timer"]
[null,"Søgnehelligdage",0,"Et normalt arbejdsår har gennemsnitligt 9 søgnehelligdage * 7,4 timer = 66,6 timer"]
[null,"Egen sygdom og evt. barns/børns sygedage",0]
[null,"I alt antal timer til ferie, sygdom og helligdage",{"$f":"SUM(C4:C7)","v":0}]
[]
[null,"Timer til rådighed for brug din psykologvirksomhed",{"$f":"TimerPrÅr - TimerIAltFerieMv","v":0}]
[]
[null,"Ikke fakturerbare timer"]
[null,"Efteruddannelse",0]
[null,"Administration",0]
[null,"Regnskab og bogføring",0]
[null,"Kommunikation med samarbejdspartnere og kunder",0]
[null,"Netværk",0]
[null,"Egen supervision",0]
[null,"Salg",0]
[null,"Markedsføring",0]
[null,"Planlægning",0]
[null,"Idéudvikling",0]
[null,"Andet",0]
[null,"I alt antal timer, hvor du ikke tjener penge i din virksomhed",{"$f":"SUM(C13:C23)","v":0}]
[]
[null,"Reelt antal effektive arbejdstimer til rådighed (fakturerbare timer)"]
[null,"Samlet antal timer",{"$f":"TimerPrÅr","v":0}]
[null,"  - Timer til ferie, sygdom og helligedage",{"$f":"TimerIAltFerieMv","v":0}]
[null,"  - Ikke-fakturerbare timer",{"$f":"TimerIkkeFakturerbare","v":0}]
[null,"I alt timer til at fakturere",{"$f":"TimerPrÅr - (TimerIAltFerieMv + TimerIkkeFakturerbare)","v":0}]
[]
[null,"Antal fakturerbare arbejdstimer",{"$f":"TimerFakturerbare","v":0}]
[null,"Ønsket årsløn",0,{"$f":"IF(IsHidden(FortjenesteÅr),Fortjeneste13,FortjenesteÅr)","v":0},"(fra driftbudget)"]
[null,"Udgifter - firma",0,{"$f":"IF(IsHidden(UdgifterÅr),Udgifter13,UdgifterÅr)","v":0},"(fra driftbudget)"]
[null,"Beregnet timepris:",{"$f":"IF(TimerFakturerbare=0,0,(ØnsketÅrsløn + UdgifterFirma)/TimerFakturerbare)","v":0}]